[Event "Betsys MČR v online bleskovém šachu 2021"]
[Site "Chess.com"]
[Date "2021.04.17"]
[Round "7"]
[White "domecek"]
[Black "JohnnyDuck64"]
[Result "1-0"]
[WhiteElo "1976"]
[BlackElo "2099"]
[TimeControl "180+1"]
[EndTime "10:12:10 PDT"]
[Termination "Uživatel domecek zvítězil na čas"]

1. d4 {[%clk 0:03:00.9]} 1... d5 {[%clk 0:02:59.2]} 2. Nf3 {[%clk 0:03:00.6]}
2... Nf6 {[%clk 0:02:58.7]} 3. g3 {[%clk 0:03:01]} 3... g6 {[%clk 0:02:58.3]} 4.
Bg2 {[%clk 0:03:01.3]} 4... Bg7 {[%clk 0:02:58.6]} 5. O-O {[%clk 0:03:01.7]}
5... O-O {[%clk 0:02:59.2]} 6. b3 {[%clk 0:03:02.1]} 6... c5 {[%clk 0:02:58.5]}
7. e3 {[%clk 0:03:01.7]} 7... Nc6 {[%clk 0:02:57.6]} 8. Bb2 {[%clk 0:03:01.4]}
8... Ne4 {[%clk 0:02:55.2]} 9. Nbd2 {[%clk 0:03:00.7]} 9... Re8 {[%clk
0:02:33.9]} 10. Qe2 {[%clk 0:02:55.9]} 10... Nxd2 {[%clk 0:02:20.1]} 11. Qxd2
{[%clk 0:02:55.9]} 11... cxd4 {[%clk 0:02:13.9]} 12. exd4 {[%clk 0:02:55.9]}
12... Bf5 {[%clk 0:02:06]} 13. Rac1 {[%clk 0:02:54.4]} 13... Rc8 {[%clk
0:02:00.2]} 14. Rfd1 {[%clk 0:02:52.2]} 14... Be4 {[%clk 0:01:51.9]} 15. a3
{[%clk 0:02:51]} 15... Qd6 {[%clk 0:01:40.7]} 16. Ne1 {[%clk 0:02:47.7]} 16...
Bxg2 {[%clk 0:01:29.7]} 17. Kxg2 {[%clk 0:02:47.7]} 17... h5 {[%clk 0:01:21.4]}
18. Nf3 {[%clk 0:02:43.9]} 18... Qf6 {[%clk 0:01:12.7]} 19. Qg5 {[%clk 0:02:37]}
19... Qxg5 {[%clk 0:01:08.9]} 20. Nxg5 {[%clk 0:02:37.2]} 20... Bh6 {[%clk
0:01:08.7]} 21. f4 {[%clk 0:02:36.9]} 21... Bxg5 {[%clk 0:01:07.5]} 22. fxg5
{[%clk 0:02:36.9]} 22... Nd8 {[%clk 0:00:47.6]} 23. c4 {[%clk 0:02:34.9]} 23...
dxc4 {[%clk 0:00:46]} 24. bxc4 {[%clk 0:02:34.7]} 24... Ne6 {[%clk 0:00:42.2]}
25. h4 {[%clk 0:02:34.5]} 25... Ng7 {[%clk 0:00:39.7]} 26. Re1 {[%clk
0:02:21.7]} 26... Nf5 {[%clk 0:00:39.4]} 27. d5 {[%clk 0:02:15.1]} 27... Red8
{[%clk 0:00:32.8]} 28. Re4 {[%clk 0:02:08.2]} 28... b6 {[%clk 0:00:27.7]} 29. a4
{[%clk 0:02:05.2]} 29... Rd7 {[%clk 0:00:27.3]} 30. a5 {[%clk 0:01:54.9]} 30...
bxa5 {[%clk 0:00:26.3]} 31. Ra1 {[%clk 0:01:52.5]} 31... Rb7 {[%clk 0:00:25.8]}
32. Be5 {[%clk 0:01:47.9]} 32... Rb3 {[%clk 0:00:22]} 33. Rxa5 {[%clk
0:01:44.9]} 33... Ne3+ {[%clk 0:00:21.4]} 34. Kh3 {[%clk 0:01:35.6]} 34... Ng4
{[%clk 0:00:18.8]} 35. Rxa7 {[%clk 0:01:29.8]} 35... Nf2+ {[%clk 0:00:18.1]} 36.
Kg2 {[%clk 0:01:26.6]} 36... Nxe4 {[%clk 0:00:19]} 37. Rxe7 {[%clk 0:01:24.3]}
37... Nc5 {[%clk 0:00:13.1]} 38. d6 {[%clk 0:01:23.3]} 38... Rd3 {[%clk
0:00:13.1]} 39. Rc7 {[%clk 0:01:16.4]} 39... Re8 {[%clk 0:00:06.5]} 40. Rxc5
{[%clk 0:01:11.8]} 40... Re3 {[%clk 0:00:06.3]} 41. Bf4 {[%clk 0:01:09.9]} 41...
Re2+ {[%clk 0:00:06.6]} 42. Kf3 {[%clk 0:01:09.5]} 42... Re1 {[%clk 0:00:06]}
43. Rd5 {[%clk 0:01:07.7]} 43... Rd8 {[%clk 0:00:05.5]} 44. c5 {[%clk
0:01:06.9]} 44... Ra1 {[%clk 0:00:04.6]} 45. c6 {[%clk 0:01:05.4]} 45... Ra3+
{[%clk 0:00:03.9]} 46. Kg2 {[%clk 0:01:03.9]} 46... Ra2+ {[%clk 0:00:04.1]} 47.
Kh3 {[%clk 0:01:03]} 47... Re8 {[%clk 0:00:03.1]} 48. d7 {[%clk 0:00:59.5]}
48... Ree2 {[%clk 0:00:02.9]} 49. d8=Q+ {[%clk 0:00:58.8]} 49... Kh7 {[%clk
0:00:03.1]} 50. g4 {[%clk 0:00:54.1]} 50... Ra3+ {[%clk 0:00:02]} 51. Rd3 {[%clk
0:00:52.9]} 51... hxg4+ {[%clk 0:00:01.8]} 52. Kxg4 {[%clk 0:00:52.1]} 52...
Rg2+ {[%clk 0:00:01.8]} 53. Kf3 {[%clk 0:00:51.2]} 1-0

[Event "Betsys MČR v online bleskovém šachu 2021"]
[Site "Chess.com"]
[Date "2021.04.17"]
[Round "7"]
[White "povrlak60"]
[Black "sipos88"]
[Result "0-1"]
[WhiteElo "1606"]
[BlackElo "1870"]
[TimeControl "180+1"]
[EndTime "10:12:10 PDT"]
[Termination "Uživatel sipos88 zvítězil na čas"]

1. e4 {[%clk 0:02:58.4]} 1... e5 {[%clk 0:02:56.5]} 2. d4 {[%clk 0:02:56.8]}
2... exd4 {[%clk 0:02:54.6]} 3. Qxd4 {[%clk 0:02:55.3]} 3... Qf6 {[%clk
0:02:53.4]} 4. Qe3 {[%clk 0:02:54.2]} 4... b6 {[%clk 0:02:52.4]} 5. Nc3 {[%clk
0:02:51.2]} 5... Bc5 {[%clk 0:02:52.1]} 6. Qg3 {[%clk 0:02:48.2]} 6... Bb7
{[%clk 0:02:47]} 7. Bg5 {[%clk 0:02:33.4]} 7... Qe6 {[%clk 0:02:22.5]} 8. f3
{[%clk 0:02:24.6]} 8... d6 {[%clk 0:02:06]} 9. O-O-O {[%clk 0:02:22.7]} 9... Nc6
{[%clk 0:02:03.4]} 10. Bb5 {[%clk 0:02:20.5]} 10... f6 {[%clk 0:01:55.8]} 11.
Bd2 {[%clk 0:02:14.4]} 11... g6 {[%clk 0:01:51.7]} 12. Nge2 {[%clk 0:02:13.1]}
12... Ne7 {[%clk 0:01:45.5]} 13. Nf4 {[%clk 0:02:12.1]} 13... Qf7 {[%clk
0:01:40.2]} 14. Rhe1 {[%clk 0:02:06.8]} 14... O-O-O {[%clk 0:01:39.5]} 15. Nfd5
{[%clk 0:01:29]} 15... Nxd5 {[%clk 0:01:35.9]} 16. Nxd5 {[%clk 0:01:18.2]} 16...
Nd4 {[%clk 0:01:34.1]} 17. Bc4 {[%clk 0:01:07.7]} 17... Qg7 {[%clk 0:01:21.4]}
18. Bc3 {[%clk 0:01:03.7]} 18... Nc6 {[%clk 0:01:15.3]} 19. a3 {[%clk
0:00:54.3]} 19... Na5 {[%clk 0:00:58.7]} 20. Bxa5 {[%clk 0:00:50.5]} 20... bxa5
{[%clk 0:00:58.5]} 21. Qg4+ {[%clk 0:00:39.2]} 21... Kb8 {[%clk 0:00:55.8]} 22.
Qf4 {[%clk 0:00:33.9]} 22... Rhf8 {[%clk 0:00:52.7]} 23. Qd2 {[%clk 0:00:33]}
23... Bb6 {[%clk 0:00:49.6]} 24. Qc3 {[%clk 0:00:25.1]} 24... c6 {[%clk
0:00:37.2]} 25. Ne3 {[%clk 0:00:18.5]} 25... Bxe3+ {[%clk 0:00:36.2]} 26. Qxe3
{[%clk 0:00:16.2]} 26... Qe7 {[%clk 0:00:35.9]} 27. Qc3 {[%clk 0:00:14.6]} 27...
Qc7 {[%clk 0:00:35.7]} 28. Re2 {[%clk 0:00:12.1]} 28... d5 {[%clk 0:00:36]} 29.
exd5 {[%clk 0:00:11.1]} 29... cxd5 {[%clk 0:00:36.4]} 30. Bb5 {[%clk 0:00:08.9]}
30... Qxc3 {[%clk 0:00:36.3]} 31. bxc3 {[%clk 0:00:08.8]} 31... Rd6 {[%clk
0:00:35.2]} 32. Rde1 {[%clk 0:00:08]} 32... Bc6 {[%clk 0:00:32.6]} 33. Bxc6
{[%clk 0:00:07]} 33... Rxc6 {[%clk 0:00:33.1]} 34. Kd2 {[%clk 0:00:06.1]} 34...
Rfc8 {[%clk 0:00:32.4]} 35. Re7 {[%clk 0:00:05]} 35... Rxc3 {[%clk 0:00:31.5]}
36. Rc1 {[%clk 0:00:04.1]} 36... Rxa3 {[%clk 0:00:30.1]} 37. Rxh7 {[%clk
0:00:02.4]} 37... Rc7 {[%clk 0:00:29.3]} 38. Rb1+ {[%clk 0:00:02.3]} 38... Kc8
{[%clk 0:00:26.9]} 39. Rh8+ {[%clk 0:00:02.1]} 39... Kd7 {[%clk 0:00:27.2]} 40.
Rbb8 {[%clk 0:00:01.8]} 40... Ra4 {[%clk 0:00:24]} 41. Rbd8+ {[%clk 0:00:01.7]}
41... Kc6 {[%clk 0:00:24.5]} 42. Rde8 {[%clk 0:00:01.7]} 42... Rc4 {[%clk
0:00:24.3]} 43. Re6+ {[%clk 0:00:01.5]} 43... Kb5 {[%clk 0:00:24.9]} 0-1

[Event "Betsys MČR v online bleskovém šachu 2021"]
[Site "Chess.com"]
[Date "2021.04.17"]
[Round "7"]
[White "valid88"]
[Black "Danyjel"]
[Result "0-1"]
[WhiteElo "1336"]
[BlackElo "1697"]
[TimeControl "180+1"]
[EndTime "10:12:11 PDT"]
[Termination "Uživatel Danyjel zvítězil po vzdání soupeře"]

1. d4 {[%clk 0:03:00.9]} 1... Nf6 {[%clk 0:02:59.3]} 2. c4 {[%clk 0:02:59]} 2...
g6 {[%clk 0:02:58.2]} 3. Nf3 {[%clk 0:02:59.1]} 3... Bg7 {[%clk 0:02:58.2]} 4.
Nc3 {[%clk 0:02:57.1]} 4... d5 {[%clk 0:02:57.8]} 5. cxd5 {[%clk 0:02:56]} 5...
Nxd5 {[%clk 0:02:58]} 6. e4 {[%clk 0:02:53.8]} 6... Nxc3 {[%clk 0:02:58.2]} 7.
bxc3 {[%clk 0:02:53.7]} 7... c5 {[%clk 0:02:58.8]} 8. Be3 {[%clk 0:02:53.8]}
8... O-O {[%clk 0:02:56.2]} 9. Be2 {[%clk 0:02:48.3]} 9... Qa5 {[%clk 0:02:55]}
10. Qd2 {[%clk 0:02:44.5]} 10... Rd8 {[%clk 0:02:54.6]} 11. O-O {[%clk
0:02:43.8]} 11... Nc6 {[%clk 0:02:50.1]} 12. Rfd1 {[%clk 0:02:27.2]} 12... Bg4
{[%clk 0:02:43.3]} 13. Rac1 {[%clk 0:01:49.9]} 13... cxd4 {[%clk 0:02:42.2]} 14.
cxd4 {[%clk 0:01:43.5]} 14... Qxd2 {[%clk 0:02:40.7]} 15. Rxd2 {[%clk
0:01:42.7]} 15... Bxf3 {[%clk 0:02:35.3]} 16. Bxf3 {[%clk 0:01:42.4]} 16... Nxd4
{[%clk 0:02:19.7]} 17. Bg4 {[%clk 0:01:22.1]} 17... Nc6 {[%clk 0:02:07.1]} 18.
Rxd8+ {[%clk 0:01:10.6]} 18... Rxd8 {[%clk 0:02:05]} 19. Rb1 {[%clk 0:01:08.8]}
19... b6 {[%clk 0:02:01]} 20. Rc1 {[%clk 0:01:05.7]} 20... Ne5 {[%clk
0:01:47.8]} 21. Bh3 {[%clk 0:01:04]} 21... e6 {[%clk 0:01:36.6]} 22. g3 {[%clk
0:00:49.3]} 22... h5 {[%clk 0:00:56.1]} 23. f4 {[%clk 0:00:31.9]} 23... Nd3
{[%clk 0:00:37.2]} 24. Rd1 {[%clk 0:00:22.6]} 24... Rd7 {[%clk 0:00:36.4]} 25.
Rd2 {[%clk 0:00:18.9]} 25... Nc5 {[%clk 0:00:30.8]} 26. Rxd7 {[%clk 0:00:17.8]}
26... Nxd7 {[%clk 0:00:30.2]} 27. e5 {[%clk 0:00:18.7]} 27... Bf8 {[%clk
0:00:28.1]} 28. Bg2 {[%clk 0:00:18]} 28... Bc5 {[%clk 0:00:27.6]} 29. Bxc5
{[%clk 0:00:17.9]} 29... Nxc5 {[%clk 0:00:27.8]} 30. Kf1 {[%clk 0:00:18.3]}
30... Kf8 {[%clk 0:00:27.9]} 31. Ke2 {[%clk 0:00:17.2]} 31... Ke7 {[%clk
0:00:28.1]} 32. Kd2 {[%clk 0:00:16.6]} 32... Kd7 {[%clk 0:00:27.9]} 33. Kc3
{[%clk 0:00:16.7]} 33... Kc7 {[%clk 0:00:28.1]} 34. Kc4 {[%clk 0:00:16.6]} 34...
a6 {[%clk 0:00:26.2]} 35. a3 {[%clk 0:00:15.8]} 35... Nd7 {[%clk 0:00:22.7]} 36.
a4 {[%clk 0:00:14]} 36... f6 {[%clk 0:00:20.9]} 37. exf6 {[%clk 0:00:11.3]}
37... Nxf6 {[%clk 0:00:20.8]} 38. h3 {[%clk 0:00:09.7]} 38... Kd6 {[%clk
0:00:17.6]} 39. Bb7 {[%clk 0:00:06.1]} 39... a5 {[%clk 0:00:16.7]} 40. Kb5
{[%clk 0:00:03.9]} 40... Kc7 {[%clk 0:00:16.8]} 41. Be4 {[%clk 0:00:02.1]} 41...
Nxe4 {[%clk 0:00:16.3]} 0-1

[Event "Betsys MČR v online bleskovém šachu 2021"]
[Site "Chess.com"]
[Date "2021.04.17"]
[Round "7"]
[White "Rognort"]
[Black "sachistamartin"]
[Result "1-0"]
[WhiteElo "1788"]
[BlackElo "1430"]
[TimeControl "180+1"]
[EndTime "10:12:12 PDT"]
[Termination "Uživatel Rognort zvítězil na čas"]

1. e4 {[%clk 0:03:00.9]} 1... e5 {[%clk 0:02:17.5]} 2. Nf3 {[%clk 0:02:59.3]}
2... Nc6 {[%clk 0:02:13.1]} 3. d4 {[%clk 0:02:58.1]} 3... exd4 {[%clk
0:02:12.4]} 4. Bc4 {[%clk 0:02:58.3]} 4... h6 {[%clk 0:02:04.7]} 5. O-O {[%clk
0:02:56.1]} 5... Nf6 {[%clk 0:01:59.8]} 6. e5 {[%clk 0:02:56]} 6... Nh7 {[%clk
0:01:56.5]} 7. Nxd4 {[%clk 0:02:51.3]} 7... Nxe5 {[%clk 0:01:50.2]} 8. Re1
{[%clk 0:02:49.2]} 8... d6 {[%clk 0:01:37]} 9. f4 {[%clk 0:02:47.7]} 9... Be7
{[%clk 0:01:23.4]} 10. fxe5 {[%clk 0:02:39.3]} 10... dxe5 {[%clk 0:01:21.5]} 11.
Rxe5 {[%clk 0:02:27.1]} 11... O-O {[%clk 0:01:20.6]} 12. Nc3 {[%clk 0:01:33]}
12... Bf6 {[%clk 0:01:16.5]} 13. Rd5 {[%clk 0:01:31.3]} 13... Qe7 {[%clk
0:00:58.5]} 14. Bf4 {[%clk 0:01:22.3]} 14... Be6 {[%clk 0:00:55.4]} 15. Nxe6
{[%clk 0:01:20.5]} 15... fxe6 {[%clk 0:00:51.3]} 16. Rd7 {[%clk 0:01:19.5]}
16... Qc5+ {[%clk 0:00:49.2]} 17. Kh1 {[%clk 0:01:13]} 17... Qxc4 {[%clk
0:00:48.7]} 18. Bxc7 {[%clk 0:01:00.1]} 18... Bxc3 {[%clk 0:00:44.1]} 19. bxc3
{[%clk 0:00:55.9]} 19... Qxc3 {[%clk 0:00:43.8]} 20. Rb1 {[%clk 0:00:48.5]}
20... Rfc8 {[%clk 0:00:41.8]} 21. Rxb7 {[%clk 0:00:30.2]} 21... Nf6 {[%clk
0:00:37.2]} 22. Rxg7+ {[%clk 0:00:15.9]} 22... Kh8 {[%clk 0:00:33.1]} 23. Bg3
{[%clk 0:00:15.8]} 23... Qxc2 {[%clk 0:00:30.9]} 24. Qf1 {[%clk 0:00:10.9]}
24... Qc1 {[%clk 0:00:28.1]} 25. Be1 {[%clk 0:00:11.2]} 25... Rg8 {[%clk
0:00:19.6]} 26. Rgc7 {[%clk 0:00:07]} 26... Qg5 {[%clk 0:00:15.9]} 27. Bd2
{[%clk 0:00:06]} 27... Qg6 {[%clk 0:00:13.7]} 28. g3 {[%clk 0:00:03.9]} 28...
Qe4+ {[%clk 0:00:11.7]} 29. Qg2 {[%clk 0:00:03.3]} 29... Qxg2+ {[%clk
0:00:10.1]} 30. Kxg2 {[%clk 0:00:03.8]} 30... Ng4 {[%clk 0:00:11]} 31. Bc3+
{[%clk 0:00:04]} 31... e5 {[%clk 0:00:08.7]} 32. h3 {[%clk 0:00:03.3]} 32...
Ne3+ {[%clk 0:00:08.3]} 33. Kf3 {[%clk 0:00:02.4]} 33... Raf8+ {[%clk
0:00:02.6]} 34. Kxe3 {[%clk 0:00:02.8]} 1-0

[Event "Betsys MČR v online bleskovém šachu 2021"]
[Site "Chess.com"]
[Date "2021.04.17"]
[Round "7"]
[White "Lipican"]
[Black "Petroniuss"]
[Result "1-0"]
[WhiteElo "2116"]
[BlackElo "2258"]
[TimeControl "180+1"]
[EndTime "10:12:15 PDT"]
[Termination "Uživatel Lipican zvítězil na čas"]

1. d4 {[%clk 0:03:00.9]} 1... d5 {[%clk 0:02:59]} 2. Nf3 {[%clk 0:03:00.5]} 2...
Nf6 {[%clk 0:02:58.7]} 3. c4 {[%clk 0:02:59.9]} 3... dxc4 {[%clk 0:02:58.5]} 4.
e3 {[%clk 0:02:58]} 4... Bg4 {[%clk 0:02:57.6]} 5. Bxc4 {[%clk 0:02:56]} 5... e6
{[%clk 0:02:57.7]} 6. O-O {[%clk 0:02:55.2]} 6... a6 {[%clk 0:02:57.8]} 7. b3
{[%clk 0:02:51.7]} 7... Nc6 {[%clk 0:02:57.5]} 8. Bb2 {[%clk 0:02:50.5]} 8...
Bd6 {[%clk 0:02:57.5]} 9. Be2 {[%clk 0:02:48.3]} 9... O-O {[%clk 0:02:57.1]} 10.
Nbd2 {[%clk 0:02:46.2]} 10... Qe8 {[%clk 0:02:56.4]} 11. Nc4 {[%clk 0:02:45.3]}
11... Rd8 {[%clk 0:02:48.6]} 12. Nxd6 {[%clk 0:02:42.8]} 12... cxd6 {[%clk
0:02:49.5]} 13. Rc1 {[%clk 0:02:40.3]} 13... Rc8 {[%clk 0:02:48.9]} 14. a3
{[%clk 0:02:39.2]} 14... Qe7 {[%clk 0:02:46.4]} 15. b4 {[%clk 0:02:38.4]} 15...
Rfd8 {[%clk 0:02:42.6]} 16. h3 {[%clk 0:02:38.1]} 16... Bh5 {[%clk 0:02:42]} 17.
Qb3 {[%clk 0:02:36.2]} 17... Bxf3 {[%clk 0:02:23.3]} 18. Bxf3 {[%clk 0:02:35.2]}
18... d5 {[%clk 0:02:23.6]} 19. Rc5 {[%clk 0:02:30.1]} 19... Nd7 {[%clk
0:01:48.6]} 20. Rc2 {[%clk 0:02:29.3]} 20... b5 {[%clk 0:01:37.4]} 21. Rfc1
{[%clk 0:02:25.4]} 21... Na7 {[%clk 0:01:35.7]} 22. e4 {[%clk 0:02:15.5]} 22...
Nb6 {[%clk 0:01:31.3]} 23. Rxc8 {[%clk 0:02:06.6]} 23... Rxc8 {[%clk 0:01:27.5]}
24. Rc5 {[%clk 0:02:04.5]} 24... dxe4 {[%clk 0:01:09.5]} 25. Bxe4 {[%clk
0:01:59.5]} 25... Nc4 {[%clk 0:01:09.6]} 26. Bc1 {[%clk 0:01:53.8]} 26... Rd8
{[%clk 0:00:59.7]} 27. Bg5 {[%clk 0:01:30.7]} 27... f6 {[%clk 0:00:56.7]} 28.
Be3 {[%clk 0:01:30.3]} 28... Nc8 {[%clk 0:00:55.8]} 29. Bd3 {[%clk 0:01:24.2]}
29... N8d6 {[%clk 0:00:49.4]} 30. Bf4 {[%clk 0:01:20.3]} 30... Kf7 {[%clk
0:00:46.9]} 31. d5 {[%clk 0:01:06.3]} 31... e5 {[%clk 0:00:44.3]} 32. Be3 {[%clk
0:00:59]} 32... e4 {[%clk 0:00:43.4]} 33. Be2 {[%clk 0:00:55.2]} 33... Rd7
{[%clk 0:00:35.9]} 34. Rc6 {[%clk 0:00:53.9]} 34... Qe5 {[%clk 0:00:20.3]} 35.
Rxa6 {[%clk 0:00:45.8]} 35... Qa1+ {[%clk 0:00:19.9]} 36. Kh2 {[%clk 0:00:45.5]}
36... Qe1 {[%clk 0:00:16.2]} 37. Bg4 {[%clk 0:00:37.6]} 37... f5 {[%clk
0:00:16]} 38. Qd1 {[%clk 0:00:33.7]} 38... Qc3 {[%clk 0:00:11.9]} 39. Be2 {[%clk
0:00:32.6]} 39... Nxe3 {[%clk 0:00:11.6]} 40. fxe3 {[%clk 0:00:31.3]} 40... Qxe3
{[%clk 0:00:12.5]} 41. Bf1 {[%clk 0:00:26.1]} 41... Qf4+ {[%clk 0:00:12.3]} 42.
Kh1 {[%clk 0:00:26.3]} 42... e3 {[%clk 0:00:12.7]} 43. Qh5+ {[%clk 0:00:24.3]}
43... Kf6 {[%clk 0:00:06.2]} 44. Be2 {[%clk 0:00:22]} 44... h6 {[%clk
0:00:03.4]} 45. Qe8 {[%clk 0:00:19.7]} 1-0

[Event "Betsys MČR v online bleskovém šachu 2021"]
[Site "Chess.com"]
[Date "2021.04.17"]
[Round "7"]
[White "Bolavey_Kotnik"]
[Black "Michelangelo111"]
[Result "1-0"]
[WhiteElo "2346"]
[BlackElo "2120"]
[TimeControl "180+1"]
[EndTime "10:12:15 PDT"]
[Termination "Uživatel Bolavey_Kotnik zvítězil na čas"]

1. e4 {[%clk 0:03:00.1]} 1... c5 {[%clk 0:02:58.4]} 2. Nf3 {[%clk 0:02:59.4]}
2... Nc6 {[%clk 0:02:54.8]} 3. Bb5 {[%clk 0:02:57.9]} 3... g6 {[%clk 0:02:53.2]}
4. O-O {[%clk 0:02:57.6]} 4... Bg7 {[%clk 0:02:52.9]} 5. c3 {[%clk 0:02:58.2]}
5... Nf6 {[%clk 0:02:52.1]} 6. Re1 {[%clk 0:02:58.1]} 6... O-O {[%clk
0:02:50.1]} 7. d4 {[%clk 0:02:46.1]} 7... cxd4 {[%clk 0:02:49.2]} 8. cxd4 {[%clk
0:02:47]} 8... d6 {[%clk 0:02:45.1]} 9. h3 {[%clk 0:02:43.8]} 9... a6 {[%clk
0:02:41.2]} 10. Bf1 {[%clk 0:02:31.2]} 10... Qc7 {[%clk 0:02:35.6]} 11. Nc3
{[%clk 0:02:22.6]} 11... b5 {[%clk 0:02:31.4]} 12. Bg5 {[%clk 0:02:16.5]} 12...
Qa7 {[%clk 0:02:13.6]} 13. Rc1 {[%clk 0:02:01.9]} 13... Bb7 {[%clk 0:02:04.4]}
14. e5 {[%clk 0:01:21.2]} 14... Nd7 {[%clk 0:01:42.5]} 15. Nd5 {[%clk
0:01:10.5]} 15... e6 {[%clk 0:01:00.7]} 16. Rxc6 {[%clk 0:00:50.5]} 16... Bxc6
{[%clk 0:00:43.3]} 17. Ne7+ {[%clk 0:00:50.2]} 17... Kh8 {[%clk 0:00:42.8]} 18.
Nxc6 {[%clk 0:00:50.8]} 18... Qb6 {[%clk 0:00:39.7]} 19. Nb4 {[%clk 0:00:45.2]}
19... dxe5 {[%clk 0:00:37.1]} 20. dxe5 {[%clk 0:00:46.1]} 20... a5 {[%clk
0:00:28.8]} 21. Nc2 {[%clk 0:00:37]} 21... Nc5 {[%clk 0:00:22.1]} 22. Qd2 {[%clk
0:00:29.7]} 22... Qc7 {[%clk 0:00:16]} 23. Ncd4 {[%clk 0:00:24.5]} 23... b4
{[%clk 0:00:13.4]} 24. Qf4 {[%clk 0:00:19.9]} 24... Nd7 {[%clk 0:00:09.7]} 25.
Nb5 {[%clk 0:00:13.1]} 25... Qc5 {[%clk 0:00:07.2]} 26. Nd6 {[%clk 0:00:10.4]}
26... Nxe5 {[%clk 0:00:04.9]} 27. Nxe5 {[%clk 0:00:09.5]} 27... f6 {[%clk
0:00:03]} 28. Ndf7+ {[%clk 0:00:07.5]} 28... Kg8 {[%clk 0:00:02.9]} 29. Nh6+
{[%clk 0:00:07.3]} 29... Bxh6 {[%clk 0:00:02.5]} 30. Bxh6 {[%clk 0:00:08.2]}
30... fxe5 {[%clk 0:00:02.2]} 31. Qg3 {[%clk 0:00:08.7]} 31... Rf7 {[%clk
0:00:01.9]} 32. Rxe5 {[%clk 0:00:08.2]} 32... Qc2 {[%clk 0:00:01.1]} 33. b3
{[%clk 0:00:07.9]} 33... Qxa2 {[%clk 0:00:01.2]} 34. Bc4 {[%clk 0:00:06.8]}
34... Rd8 {[%clk 0:00:01.5]} 35. Re1 {[%clk 0:00:03.8]} 1-0

[Event "Betsys MČR v online bleskovém šachu 2021"]
[Site "Chess.com"]
[Date "2021.04.17"]
[Round "7"]
[White "jsulc"]
[Black "MBorkovec"]
[Result "0-1"]
[WhiteElo "2063"]
[BlackElo "2274"]
[TimeControl "180+1"]
[EndTime "10:12:15 PDT"]
[Termination "Uživatel MBorkovec zvítězil na čas"]

1. d4 {[%clk 0:03:00.9]} 1... Nf6 {[%clk 0:02:55.5]} 2. c4 {[%clk 0:02:58.9]}
2... g6 {[%clk 0:02:55.7]} 3. Nc3 {[%clk 0:02:57.4]} 3... Bg7 {[%clk 0:02:56]}
4. e4 {[%clk 0:02:55.4]} 4... O-O {[%clk 0:02:55.4]} 5. Be3 {[%clk 0:02:50.9]}
5... d6 {[%clk 0:02:55.3]} 6. h3 {[%clk 0:02:43.2]} 6... e5 {[%clk 0:02:51.5]}
7. d5 {[%clk 0:02:42.8]} 7... a5 {[%clk 0:02:50.4]} 8. g4 {[%clk 0:02:40.7]}
8... Na6 {[%clk 0:02:48.1]} 9. Nge2 {[%clk 0:02:41]} 9... Nc5 {[%clk 0:02:47.5]}
10. Ng3 {[%clk 0:02:41.6]} 10... c6 {[%clk 0:02:42.1]} 11. Be2 {[%clk
0:02:31.1]} 11... cxd5 {[%clk 0:02:41]} 12. cxd5 {[%clk 0:02:29.4]} 12... b6
{[%clk 0:02:34.6]} 13. Qd2 {[%clk 0:02:24]} 13... Ba6 {[%clk 0:02:33.2]} 14. g5
{[%clk 0:02:18.2]} 14... Nfd7 {[%clk 0:02:28]} 15. Nb5 {[%clk 0:02:13.6]} 15...
Bxb5 {[%clk 0:02:21.5]} 16. Bxb5 {[%clk 0:02:12.6]} 16... f6 {[%clk 0:02:15.9]}
17. gxf6 {[%clk 0:02:01.5]} 17... Qxf6 {[%clk 0:02:11]} 18. O-O-O {[%clk
0:01:50.7]} 18... Rac8 {[%clk 0:01:58.3]} 19. Kb1 {[%clk 0:01:50.5]} 19... Qf3
{[%clk 0:01:40.2]} 20. Be2 {[%clk 0:01:33]} 20... Nxe4 {[%clk 0:01:31.9]} 21.
Nxe4 {[%clk 0:01:32.7]} 21... Qxe4+ {[%clk 0:01:31]} 22. Ka1 {[%clk 0:01:29.5]}
22... Qb4 {[%clk 0:01:28.1]} 23. Qxb4 {[%clk 0:01:21.9]} 23... axb4 {[%clk
0:01:28.2]} 24. Bg4 {[%clk 0:01:21.1]} 24... Rc7 {[%clk 0:01:21.4]} 25. Rc1
{[%clk 0:01:11.9]} 25... Nc5 {[%clk 0:01:19.7]} 26. Kb1 {[%clk 0:01:09.7]} 26...
h5 {[%clk 0:01:15.6]} 27. Be2 {[%clk 0:01:07.3]} 27... Ra8 {[%clk 0:01:07.7]}
28. Bd2 {[%clk 0:01:01.9]} 28... b3 {[%clk 0:01:06.6]} 29. a3 {[%clk 0:01:01.4]}
29... Rf8 {[%clk 0:01:03.5]} 30. Be3 {[%clk 0:01:00.7]} 30... Kh7 {[%clk
0:01:02]} 31. Rhg1 {[%clk 0:00:56.5]} 31... Bh6 {[%clk 0:01:00]} 32. Rc3 {[%clk
0:00:44.2]} 32... Bxe3 {[%clk 0:00:58.2]} 33. fxe3 {[%clk 0:00:43.8]} 33... Rcf7
{[%clk 0:00:50.9]} 34. Bd1 {[%clk 0:00:35.3]} 34... Rf2 {[%clk 0:00:40.1]} 35.
Bxb3 {[%clk 0:00:30.8]} 35... Rf1+ {[%clk 0:00:40.3]} 36. Rxf1 {[%clk
0:00:29.5]} 36... Rxf1+ {[%clk 0:00:39.6]} 37. Ka2 {[%clk 0:00:28.8]} 37... Rf3
{[%clk 0:00:39.6]} 38. Bc2 {[%clk 0:00:21.5]} 38... Rxh3 {[%clk 0:00:35.2]} 39.
b4 {[%clk 0:00:20.9]} 39... Nd7 {[%clk 0:00:32.3]} 40. Rc6 {[%clk 0:00:20]}
40... Rxe3 {[%clk 0:00:28.7]} 41. Rxd6 {[%clk 0:00:20]} 41... Nf8 {[%clk
0:00:28.1]} 42. Rxb6 {[%clk 0:00:16.5]} 42... h4 {[%clk 0:00:27.7]} 43. d6
{[%clk 0:00:15.3]} 43... h3 {[%clk 0:00:27.1]} 44. d7 {[%clk 0:00:15.5]} 44...
Nxd7 {[%clk 0:00:26.3]} 45. Bxg6+ {[%clk 0:00:12.4]} 45... Kg7 {[%clk 0:00:25]}
46. Rb7 {[%clk 0:00:08]} 46... Kxg6 {[%clk 0:00:24.2]} 47. Rxd7 {[%clk
0:00:06.8]} 47... h2 {[%clk 0:00:23.8]} 0-1